lending/lending_fUSD_20251107
["ID","MTS","AMOUNT","RATE_DAILY","PERIOD"]
[393338238,1762489844712,-500.0,0.00032877,7]
[393338239,1762489844722,-500.0,0.00032877,7]
[393338240,1762489844733,-500.0,0.00032877,7]
[393338241,1762489844742,-500.0,0.00032877,7]
[393338242,1762489844752,-500.0,0.00032877,7]
[393338243,1762489844761,-500.0,0.00032877,7]
[393338244,1762489844770,-500.0,0.00032877,7]
[393338245,1762489844779,-500.0,0.00032877,7]
[393338246,1762489844788,-500.0,0.00032877,7]
[393338247,1762489844798,-500.0,0.00032877,7]
[393338248,1762489844806,-500.0,0.00032877,7]
[393338249,1762489844815,-500.0,0.00032877,7]
[393338250,1762489844826,-500.0,0.00032877,7]
[393338251,1762489844835,-500.0,0.00032877,7]
[393338252,1762489844846,-500.0,0.00032877,7]
[393338253,1762489844855,-500.0,0.00032877,7]
[393338254,1762489844865,-500.0,0.00032877,7]
[393338255,1762489844876,-500.0,0.00032877,7]
[393338256,1762489844885,-500.0,0.00032877,7]
[393338257,1762489844894,-500.0,0.00032877,7]
[393338258,1762489844905,-500.0,0.00032877,7]
[393338259,1762489844914,-500.0,0.00032877,7]
[393338260,1762489844925,-561.91499006,0.00032877,7]
[393338261,1762489844934,-500.0,0.00032877,7]
[393338262,1762489844943,-557.23491055,0.00032877,7]
[393338263,1762489844952,-500.0,0.00032877,7]
[393338264,1762489844961,-500.0,0.00032877,7]
[393338265,1762489844970,-600.0,0.00032877,7]
[393338266,1762489844980,-500.0,0.00032877,7]
[393338267,1762489844991,-500.0,0.00032877,7]
[393338268,1762489845000,-500.0,0.00032877,7]
[393338269,1762489845009,-400.0,0.00032877,7]
[393338270,1762489845018,-500.0,0.00032877,7]
[393338271,1762489845028,-500.0,0.00032877,7]
[393338272,1762489845037,-167.83404792,0.0003288,30]
[393338273,1762489845046,-167.83,0.0003288,30]
[393338274,1762489845055,-176.48,0.0003288,30]
[393338275,1762489845065,-269.18039782,0.0003288,30]
[393338276,1762489845074,-269.18039782,0.0003288,30]
[393338277,1762489845083,-269.18039782,0.0003288,30]
[393338278,1762489845092,-269.18039782,0.0003288,30]
[393338279,1762489845101,-269.18039782,0.0003288,30]
[393338280,1762489845110,-269.18039782,0.0003288,30]
[393338281,1762489845119,-269.18039782,0.0003288,30]
[393338282,1762489845129,-269.18039782,0.0003288,30]
[393338283,1762489845138,-269.18039782,0.0003288,30]
[393338284,1762489845147,-269.18039782,0.0003288,30]
[393338285,1762489845156,-269.18039782,0.0003288,30]
[393338286,1762489845166,-269.18039782,0.0003288,30]
[393338287,1762489845175,-269.18039782,0.0003288,30]
[393338288,1762489845183,-269.18039782,0.0003288,30]
[393338289,1762489845193,-269.18039782,0.0003288,30]
[393338290,1762489845201,-269.18039782,0.0003288,30]
[393338291,1762489845211,-269.18039782,0.0003288,30]
[393338292,1762489845221,-269.18039782,0.0003288,30]
[393338293,1762489845230,-269.18039782,0.0003288,30]
[393338294,1762489845240,-269.18,0.0003288,30]
[393338295,1762489845249,-628.08759491,0.0003288,30]
[393338296,1762489845259,-628.08759491,0.0003288,30]
[393338297,1762489845268,-628.08759491,0.0003288,30]
[393338298,1762489845277,-628.08759491,0.0003288,30]
[393338299,1762489845287,-628.08759491,0.0003288,30]
[393338300,1762489845295,-628.08759491,0.0003288,30]
[393338301,1762489845305,-628.08759491,0.0003288,30]
[393338302,1762489845315,-628.08759491,0.0003288,30]
[393338303,1762489845323,-628.08759491,0.0003288,30]
[393338304,1762489845333,-628.08759491,0.0003288,30]
[393338305,1762489845342,-628.08759491,0.0003288,30]
[393338306,1762489845351,-628.08759491,0.0003288,30]
[393338307,1762489845360,-628.08759491,0.0003288,30]
[393338308,1762489845369,-628.08759491,0.0003288,30]
[393338309,1762489845378,-628.08759491,0.0003288,30]
[393338310,1762489845387,-628.08759491,0.0003288,30]
[393338311,1762489845396,-628.08759491,0.0003288,30]
[393338312,1762489845405,-628.08759491,0.0003288,30]
[393338313,1762489845414,-628.08759491,0.0003288,30]
[393338314,1762489845424,-628.08,0.0003288,30]
[393338315,1762489845433,-1536.74855903,0.00033,2]
[393338316,1762489845442,-151.43090155,0.00033,2]
[393338317,1762489845451,-199.0,0.0003315,7]
[393338318,1762489845461,-474.98581241,0.0003315,7]
[393338319,1762489845471,-843.84,0.00033165,2]
[393338320,1762489845480,-285.15,0.000332,30]
[393338321,1762489845489,-180300.0,0.000332,2]
[393338322,1762489845499,-875.43111292,0.00033254,2]
[393338323,1762489845508,-2000.0,0.00033305,120]
[393338324,1762489845518,-1000.0,0.00033333,7]
[393338325,1762489845527,-1194.81598635,0.000335,2]
[393338326,1762489845537,-500.0,0.00033507,2]
[393338327,1762489845547,-875.43111292,0.00033634,2]
[393338328,1762489845556,-1005.0,0.000337,7]
[393338330,1762489845565,-500.0,0.00033734,7]
[393338331,1762489845574,-875.43111292,0.00033783,2]
[393338332,1762489845583,-26463.87857821,0.000338,2]
[393338333,1762489845593,-218.83553848,0.0003386,2]
[393338334,1762489845602,-500.0,0.00033871,7]
[393338335,1762489845612,-500.0,0.00033917,7]
[393338336,1762489845622,-500.0,0.00033963,7]
[393338337,1762489845631,-1167.0,0.00033989,5]
[393338338,1762489845640,-2000.0,0.00034,2]
[393338339,1762489845650,-976.96,0.00034,2]
[393338340,1762489845659,-500.0,0.00034062,7]
[393338341,1762489845668,-500.0,0.00034066,7]
[393338342,1762489845677,-5515.0,0.000341,3]
[393338343,1762489845686,-500.0,0.00034148,7]
[393338345,1762489845696,-218.83553848,0.0003415,2]
[393338347,1762489845705,-2000.0,0.00034207,120]
[393338348,1762489845714,-875.43111292,0.0003424,2]
[393338351,1762489845724,-285.15,0.000343,30]
[393338353,1762489845734,-500.0,0.00034372,7]
[393338355,1762489845746,-875.43111292,0.00034438,2]
[393338357,1762489845755,-218.83553848,0.00034486,2]
[393338359,1762489845764,-1706.36816701,0.0003449,2]
[393338361,1762489845773,-199.0,0.0003452,8]
[393338363,1762489845782,-607.0,0.00034527,2]
[393338365,1762489845791,-574.0,0.00034527,2]
[393338367,1762489845800,-6659.0,0.00034527,2]
[393338369,1762489845809,-500.0,0.00034532,7]
[393338371,1762489845819,-500.0,0.00034548,7]
[393338373,1762489845828,-218.83553848,0.00034567,2]
[393338374,1762489845838,-875.43111292,0.00034569,2]
[393338376,1762489845847,-500.0,0.00034676,7]
[393338377,1762489845857,-1005.0,0.000347,7]
[393338378,1762489845869,-218.83553848,0.00034805,2]
[393338379,1762489845879,-1596.0,0.00034827,2]
[393338380,1762489845888,-905.0,0.00034827,2]
[393338381,1762489845898,-275.32,0.00034854,2]
[393338382,1762489845907,-1693.11,0.00034867,30]
[393338383,1762489845917,-500.0,0.00034873,120]
[393338384,1762489845926,-500.0,0.00034873,120]
[393338385,1762489845936,-500.0,0.00034873,120]
[393338386,1762489845947,-500.0,0.00034873,120]
[393338387,1762489845956,-500.0,0.00034873,120]
[393338388,1762489845966,-500.0,0.00034873,120]
[393338389,1762489845975,-500.0,0.00034873,120]
[393338390,1762489845986,-500.0,0.00034873,120]
[393338391,1762489845996,-500.0,0.00034873,120]
[393338392,1762489846006,-500.0,0.00034873,120]
[393338393,1762489846015,-500.0,0.00034873,120]
[393338394,1762489846025,-500.0,0.00034873,120]
[393338395,1762489846035,-500.0,0.00034873,120]
[393338396,1762489846044,-500.0,0.00034873,120]
[393338397,1762489846054,-500.0,0.00034873,120]
[393338398,1762489846063,-500.0,0.00034873,120]
[393338399,1762489846072,-1421.25133821,0.00034879,30]
[393338400,1762489846082,-500.0,0.00034941,7]
[393338401,1762489846091,-500.0,0.00034982,7]
[393338402,1762489846100,-3162.72758788,0.00035,15]
[393338403,1762489846110,-401.42820235,0.00035,2]
[393338404,1762489846120,-1219.70137002,0.00035,2]
[393338405,1762489846130,-5515.0,0.00035,5]
[393338406,1762489846139,-500.0,0.00035002,30]
[393338407,1762489846148,-875.43111292,0.00035006,2]
[393338408,1762489846158,-500.0,0.00035089,30]
[393338409,1762489846168,-275.32,0.00035108,2]
[393338410,1762489846178,-2000.0,0.00035109,120]
[393338411,1762489846188,-218.83553848,0.00035132,2]
[393338412,1762489846197,-181.12211468,0.00035134,14]
[393338413,1762489846207,-500.0,0.00035293,30]
[393338414,1762489846217,-477.99034883,0.00035304,30]
[393338415,1762489846227,-875.43111292,0.00035329,2]
[393338416,1762489846237,-275.32,0.00035362,2]
[393338417,1762489846247,-12975.0,0.00035367,3]
[393338418,1762489846256,-218.83553848,0.00035371,2]
[393338419,1762489846266,-500.0,0.00035395,30]
[393338420,1762489846276,-285.15,0.000354,30]
[393338421,1762489846286,-500.0,0.00035424,30]
[393338422,1762489846296,-500.0,0.00035439,30]
[393338423,1762489846306,-150.0,0.00035471,2]
[393338424,1762489846315,-150.0,0.00035471,2]
[393338425,1762489846325,-2742.82909264,0.00035471,2]
[393338426,1762489846335,-150.0,0.00035471,2]
[393338427,1762489846345,-594.79762274,0.00035471,2]
[393338428,1762489846354,-150.0,0.00035471,2]
[393338429,1762489846364,-875.43111292,0.00035501,2]
[393338430,1762489846374,-500.0,0.00035525,30]
[393338431,1762489846384,-500.0,0.00035529,30]
[393338432,1762489846393,-353.86,0.0003555,14]
[393338433,1762489846403,-500.0,0.00035616,7]
[393338434,1762489846413,-500.0,0.00035616,7]
[393338435,1762489846423,-641.75352453,0.00035616,7]
[393338436,1762489846432,-182.41705828,0.00035616,7]
[393338437,1762489846442,-1000.0,0.00035616,5]
[393338438,1762489846451,-159.78598,0.00035616,31]
[393338439,1762489846461,-151.0,0.00035616,31]
[393338440,1762489846470,-151.0,0.00035616,31]
[393338441,1762489846480,-1005.0,0.000357,7]
[393338442,1762489846489,-500.0,0.00035704,30]
[393338443,1762489846498,-875.43111292,0.00035746,2]
[393338444,1762489846508,-500.0,0.00035778,30]
[393338445,1762489846518,-218.83553848,0.00035849,2]
[393338446,1762489846528,-500.0,0.00035863,30]
[393338447,1762489846538,-199.0,0.0003589,9]
[393338448,1762489846548,-875.43111292,0.00035928,2]
[393338449,1762489846557,-112025.4358027,0.00036,2]
[393338450,1762489846567,-1280.1860622,0.00036,10]
[393338451,1762489846577,-230400.26723631,0.00036,2]
[393338452,1762489846587,-10703.14865581,0.00036,2]
[393338453,1762489846596,-500.0,0.00036,5]
[393338454,1762489846606,-2000.0,0.0003601,120]
[393338455,1762489846616,-500.0,0.00036045,30]
[393338456,1762489846625,-218.83553848,0.0003607,2]
[393338457,1762489846635,-500.0,0.00036077,30]
[393338458,1762489846644,-500.0,0.00036097,30]
[393338459,1762489846654,-875.43111292,0.00036189,2]
[393338460,1762489846664,-300.0,0.000362,2]
[393338461,1762489846673,-347.89316635,0.000362,2]
[393338462,1762489846683,-218.83553848,0.00036204,2]
[393338463,1762489846692,-223.18267872,0.00036348,16]
[393338464,1762489846701,-1000.0,0.00036411,5]
[393338465,1762489846710,-617.57255247,0.000365,120]
[393338466,1762489846719,-477.99034883,0.000365,120]
[393338467,1762489846728,-805.12204753,0.00036507,30]
[393338468,1762489846738,-500.0,0.00036578,30]
[393338470,1762489846749,-285.15,0.000366,30]
[393338472,1762489846758,-218.83553848,0.00036604,2]
[393338474,1762489846768,-500.0,0.00036632,30]
[393338476,1762489846777,-875.43111292,0.0003668,2]
[393338477,1762489846787,-16566.18,0.000367,14]
[393338479,1762489846796,-263.0,0.000367,13]
[393338481,1762489846804,-1005.0,0.000367,7]
[393338483,1762489846814,-200.51355,0.000367,13]
[393338484,1762489846824,-500.0,0.00036724,30]
[393338485,1762489846834,-218.83553848,0.00036769,2]
[393338486,1762489846844,-1586.95286101,0.000368,2]
[393338487,1762489846853,-725.0,0.000368,120]
[393338488,1762489846864,-466.89261371,0.00036822,5]
[393338489,1762489846875,-532.76808339,0.0003684,30]
[393338490,1762489846885,-698.68,0.0003686,2]
[393338491,1762489846895,-1084.94,0.0003686,2]
[393338492,1762489846907,-698.2,0.0003686,2]
[393338493,1762489846918,-875.43111292,0.00036904,2]
[393338494,1762489846928,-13917.60481136,0.0003691,2]
[393338495,1762489846937,-2000.0,0.00036912,120]
[393338496,1762489846947,-150.0,0.00036987,10]
[393338497,1762489846957,-150.0,0.00036987,10]
[393338498,1762489846966,-150.0,0.00036987,10]
[393338499,1762489846975,-150.0,0.00036987,10]
[393338500,1762489846984,-159.8352341,0.00036987,10]
[393338501,1762489846994,-150.0,0.00036987,10]
[393338502,1762489847003,-500.0,0.00036987,10]
[393338503,1762489847013,-150.69644149,0.00036987,10]
[393338504,1762489847022,-500.0,0.00036987,10]
[393338505,1762489847032,-500.0,0.00036987,10]
[393338506,1762489847042,-500.0,0.00036987,10]
[393338507,1762489847052,-500.0,0.00036987,10]
[393338508,1762489847062,-500.0,0.00036987,10]
[393338509,1762489847072,-500.0,0.00036987,10]
[393338510,1762489847081,-455.16123222,0.00036987,10]
[393338511,1762489847090,-150.0,0.00036987,10]
[393338512,1762489847100,-500.0,0.00036987,10]
[393338513,1762489847110,-150.0,0.00036987,2]
[393338514,1762489847119,-500.0,0.00036987,10]
[393338515,1762489847129,-500.0,0.00036987,10]
[393338516,1762489847140,-150.0,0.00036987,2]
[393338517,1762489847150,-150.0,0.00036987,10]
[393338518,1762489847159,-152.7466115,0.00036987,10]
[393338519,1762489847168,-203.86759785,0.00036987,10]
[393338520,1762489847179,-500.0,0.00036987,10]
[393338521,1762489847188,-500.0,0.00036987,10]
[393338522,1762489847198,-150.57079425,0.00036987,10]
[393338523,1762489847207,-152.44485663,0.00036987,10]
[393338524,1762489847217,-500.0,0.00036987,10]
[393338525,1762489847226,-150.0,0.00036987,60]
[393338526,1762489847236,-500.0,0.00036987,2]
[393338527,1762489847246,-596.0,0.00036987,10]
[393338528,1762489847255,-150.0,0.00036987,10]
[393338529,1762489847265,-150.0,0.00036987,10]
[393338530,1762489847275,-206.67991909,0.00036987,2]
[393338531,1762489847284,-500.0,0.00036987,10]
[393338532,1762489847294,-500.0,0.00036996,30]
[393338533,1762489847305,-69680.56807856,0.00036999,2]
[393338534,1762489847315,-2000.0,0.00037,2]
[393338535,1762489847460,-2000.0,0.00037,2]
[393338536,1762489847470,-8786.11279803,0.00037,2]
[393338537,1762489847483,-163.14306166,0.00037,2]
[393338538,1762489847494,-2000.0,0.00037,2]
[393338539,1762489847503,-2000.0,0.00037,2]
[393338540,1762489847512,-2000.0,0.00037,2]
[393338541,1762489847523,-2453.579805,0.00037,27]
[393338542,1762489847532,-150.0,0.00037124,10]
[393338543,1762489847542,-150.0,0.00037124,10]
[393338544,1762489847552,-150.0,0.00037124,10]
[393338545,1762489847562,-649.3393836,0.00037124,10]
[393338546,1762489847572,-201.77170625,0.00037124,10]
[393338547,1762489847582,-437.69673721,0.00037124,10]
[393338548,1762489847592,-500.0,0.00037124,10]
[393338549,1762489847602,-458.55449375,0.00037124,10]
[393338550,1762489847622,-150.0,0.00037124,10]
[393338551,1762489847632,-500.0,0.00037124,10]
[393338552,1762489847642,-500.0,0.00037124,10]
[393338553,1762489847652,-500.0,0.00037124,10]
[393338554,1762489847662,-150.0,0.00037124,60]
[393338555,1762489847672,-500.0,0.00037124,2]
[393338556,1762489847683,-596.0,0.00037124,10]
[393338557,1762489847693,-168.9588754,0.00037124,10]
[393338558,1762489847703,-202.69959715,0.00037124,10]
[393338559,1762489847714,-500.0,0.00037124,10]
[393338560,1762489847724,-875.43111292,0.00037134,2]
[393338561,1762489847735,-300.0,0.00037161,2]
[393338562,1762489847745,-167.4277544,0.000372,120]
[393338563,1762489847755,-167.4277544,0.000372,120]
[393338564,1762489847765,-167.4277544,0.000372,120]
[393338565,1762489847775,-167.4277544,0.000372,120]
[393338566,1762489847785,-167.4277544,0.000372,120]
[393338567,1762489847795,-218.83553848,0.0003724,2]
[393338568,1762489847805,-150.0,0.00037249,7]
[393338569,1762489847815,-199.0,0.0003726,10]
[393338570,1762489847826,-200.0,0.00037261,10]
[393338571,1762489847836,-200.0,0.00037261,10]
[393338572,1762489847847,-200.0,0.00037261,10]
[393338573,1762489847858,-500.0,0.00037261,10]
[393338574,1762489847873,-203.48893781,0.00037261,10]
[393338575,1762489847883,-500.0,0.00037261,10]
[393338576,1762489847893,-259.45484298,0.00037261,10]
[393338577,1762489847903,-350.08208835,0.00037261,10]
[393338578,1762489847913,-150.0,0.00037261,60]
[393338579,1762489847923,-500.0,0.00037261,2]
[393338580,1762489847937,-596.0,0.00037261,10]
[393338581,1762489847947,-500.0,0.00037261,10]
[393338582,1762489847957,-1000.0,0.00037277,7]
[393338583,1762489847967,-875.43111292,0.00037328,2]
[393338584,1762489847976,-300.0,0.00037362,2]
[393338585,1762489847986,-218.83553848,0.00037366,2]
[393338586,1762489848000,-154788.95634805,0.0003739,14]
[393338587,1762489848011,-500.0,0.00037398,10]
[393338588,1762489848021,-500.0,0.00037398,10]
[393338589,1762489848031,-173.48364417,0.00037398,60]
[393338590,1762489848041,-500.0,0.00037398,2]
[393338591,1762489848051,-596.0,0.00037398,10]
[393338592,1762489848061,-500.0,0.00037398,10]
[393338593,1762489848071,-206.79,0.00037407,2]
[393338594,1762489848081,-500.0,0.00037479,30]
[393338595,1762489848090,-1000.0,0.00037489,7]
[393338596,1762489848100,-1500.0,0.000375,27]
[393338597,1762489848110,-1000.0,0.0003752,7]
[393338598,1762489848119,-500.0,0.00037525,30]
[393338599,1762489848129,-607.0,0.00037527,2]
[393338600,1762489848139,-574.0,0.00037527,2]
[393338601,1762489848148,-6659.0,0.00037527,2]
[393338602,1762489848157,-300.0,0.00037531,2]
[393338603,1762489848167,-573.72728903,0.00037535,10]
[393338604,1762489848179,-500.0,0.00037535,10]
[393338605,1762489848189,-500.0,0.00037535,2]
[393338606,1762489848203,-596.0,0.00037535,10]
[393338607,1762489848212,-500.0,0.00037535,10]
[393338608,1762489848223,-300.0,0.00037549,2]
[393338609,1762489848233,-300.0,0.00037558,85]
[393338610,1762489848244,-782.15292764,0.0003758,2]
[393338611,1762489848254,-4268.87150319,0.0003759,2]
[393338612,1762489848264,-285.15,0.000376,30]
[393338613,1762489848274,-1222.87,0.00037607,2]
[393338614,1762489848284,-875.43111292,0.00037627,2]
[393338615,1762489848294,-300.0,0.0003764,2]
[393338616,1762489848303,-1000.0,0.00037671,7]
[393338617,1762489848313,-573.00202241,0.00037672,10]
[393338618,1762489848323,-503.55126716,0.00037672,2]
[393338619,1762489848333,-596.0,0.00037672,10]
[393338620,1762489848343,-500.0,0.00037672,10]
[393338621,1762489848354,-200.0,0.00037675,2]
[393338622,1762489848364,-200.0,0.00037675,2]
[393338623,1762489848374,-200.0,0.00037675,2]
[393338624,1762489848384,-200.0,0.00037675,2]
[393338625,1762489848397,-200.0,0.00037675,2]
[393338626,1762489848407,-200.0,0.00037675,2]
[393338627,1762489848416,-200.0,0.00037675,2]
[393338628,1762489848426,-200.0,0.00037675,2]
[393338629,1762489848436,-200.0,0.00037675,2]
[393338630,1762489848446,-200.0,0.00037675,2]
[393338631,1762489848457,-200.0,0.00037675,2]
[393338632,1762489848467,-200.0,0.00037675,2]
[393338633,1762489848476,-200.0,0.00037675,2]
[393338634,1762489848486,-200.0,0.00037675,2]
[393338635,1762489848495,-200.0,0.00037675,2]
[393338636,1762489848505,-200.0,0.00037675,2]
[393338637,1762489848514,-200.0,0.00037675,2]
[393338638,1762489848524,-200.0,0.00037675,2]
[393338639,1762489848534,-200.0,0.00037675,2]
[393338640,1762489848544,-200.0,0.00037675,2]
[393338641,1762489848554,-200.0,0.00037675,2]
[393338642,1762489848563,-200.0,0.00037675,2]
[393338643,1762489848573,-200.0,0.00037675,2]
[393338644,1762489848583,-200.0,0.00037675,2]
[393338645,1762489848596,-200.0,0.00037675,2]
[393338646,1762489848605,-200.0,0.00037675,2]
[393338647,1762489848614,-200.0,0.00037675,2]
[393338648,1762489848624,-200.0,0.00037675,2]
[393338649,1762489848633,-200.0,0.00037675,2]
[393338650,1762489848643,-200.0,0.00037675,2]
[393338651,1762489848652,-200.0,0.00037675,2]
[393338652,1762489848661,-200.0,0.00037675,2]
[393338653,1762489848671,-200.0,0.00037675,2]
[393338654,1762489848680,-200.0,0.00037675,2]
[393338655,1762489848690,-200.0,0.00037675,2]
[393338656,1762489848699,-294.0,0.00037675,2]
[393338657,1762489848709,-176.0,0.00037675,13]
[393338658,1762489848719,-500.0,0.00037675,120]
[393338659,1762489848728,-500.0,0.00037675,120]
[393338660,1762489848738,-500.0,0.00037675,120]
[393338661,1762489848747,-500.0,0.00037675,120]
[393338662,1762489848756,-500.0,0.00037675,120]
[393338663,1762489848766,-500.0,0.00037675,120]
[393338664,1762489848775,-231.0,0.00037675,120]
[393338665,1762489848787,-362.43,0.000377,120]
[393338666,1762489848797,-2000.0,0.000377,2]
[393338667,1762489848806,-300.0,0.000377,15]
[393338668,1762489848816,-1005.0,0.000377,7]
[393338669,1762489848826,-218.83553848,0.000377,2]
[393338670,1762489848835,-150.0,0.00037738,7]
[393338671,1762489848844,-3388.54684246,0.00037748,10]
[393338672,1762489848853,-300.0,0.00037753,2]
[393338673,1762489848865,-544.57170129,0.00037776,7]
[393338674,1762489848875,-1000.0,0.00037786,7]
[393338675,1762489848884,-1000.0,0.00037797,7]
[393338676,1762489848894,-548.34,0.00037802,7]
[393338677,1762489848903,-500.0,0.00037802,7]
[393338678,1762489848913,-500.0,0.00037802,7]
[393338679,1762489848923,-500.0,0.00037802,7]
[393338680,1762489848932,-500.0,0.00037802,7]
[393338681,1762489848942,-500.0,0.00037802,7]
[393338682,1762489848951,-500.0,0.00037802,7]
[393338683,1762489848960,-500.0,0.00037802,7]
[393338684,1762489848970,-500.0,0.00037802,7]
[393338685,1762489848979,-500.0,0.00037802,7]
[393338686,1762489848990,-622.66,0.00037802,7]
[393338687,1762489849000,-500.0,0.00037802,7]
[393338688,1762489849010,-596.0,0.00037809,10]
[393338689,1762489849019,-500.0,0.00037809,10]
[393338690,1762489849028,-2000.0,0.00037814,120]
[393338691,1762489849038,-477.21,0.00037818,2]
[393338692,1762489849047,-698.68,0.00037818,2]
[393338693,1762489849057,-504.11490822,0.00037821,30]
[393338694,1762489849067,-1596.0,0.00037827,2]
[393338695,1762489849076,-905.0,0.00037827,2]
[393338696,1762489849086,-150.0,0.00037842,7]
[393338697,1762489849095,-2500.0,0.00037858,2]
[393338698,1762489849104,-500.0,0.00037858,120]
[393338699,1762489849114,-500.0,0.00037862,30]
[393338700,1762489849124,-1000.0,0.00037863,7]
[393338701,1762489849143,-875.43111292,0.00037873,2]
[393338702,1762489849160,-199.12835618,0.0003788,2]
[393338703,1762489849175,-1000.0,0.00037884,7]
[393338704,1762489849188,-300.0,0.00037888,7]
[393338705,1762489849200,-300.0,0.00037895,2]
[393338706,1762489849211,-300.0,0.00037898,2]
[393338707,1762489849224,-159.61845324,0.00037899,7]
[393338708,1762489849237,-300.0,0.00037919,2]
[393338709,1762489849250,-150.0,0.00037926,7]
[393338710,1762489849262,-596.0,0.00037946,10]
[393338711,1762489849274,-500.0,0.00037946,10]
[393338712,1762489849286,-150.0,0.00037957,7]
[393338713,1762489849299,-76402.2330026,0.0003797,2]
[393338714,1762489849313,-287.235,0.00037973,30]
[393338715,1762489849325,-218.83553848,0.00037978,2]
[393338716,1762489849337,-500.0,0.00037987,30]
[393338717,1762489849348,-1000.0,0.0003799,7]
[393338718,1762489849358,-300.0,0.00037993,7]
[393338719,1762489849368,-1000.0,0.00037994,7]
[393338720,1762489849380,-829.0,0.00038,30]
[393338721,1762489849392,-368.26,0.00038,2]
[393338722,1762489849404,-300.0,0.00038,2]
[393338723,1762489849415,-2850.35311745,0.00038,120]
[393338724,1762489849428,-3275.18211507,0.00038,120]
[393338725,1762489849440,-162.43792701,0.00038,5]
[393338726,1762489849453,-1500.0,0.00038,27]
[393338727,1762489849465,-300.0,0.00038004,2]
[393338728,1762489849477,-1000.0,0.00038026,7]
[393338729,1762489849490,-300.0,0.00038028,2]
[393338730,1762489849501,-1000.0,0.00038052,7]
[393338731,1762489849513,-300.0,0.00038072,7]
[393338732,1762489849527,-1000.0,0.00038082,7]
[393338733,1762489849539,-596.0,0.00038083,10]
[393338734,1762489849552,-505.4584771,0.000381,33]
[393338735,1762489849564,-16566.18,0.000381,14]
[393338736,1762489849576,-218.83553848,0.0003812,2]
[393338737,1762489849588,-1000.0,0.00038129,7]
[393338738,1762489849600,-300.0,0.00038132,2]
[393338739,1762489849610,-382.01898712,0.00038134,2]
[393338740,1762489849623,-1000.0,0.00038134,7]
[393338741,1762489849639,-150.0,0.00038136,7]
[393338742,1762489849652,-1000.0,0.00038136,7]
[393338743,1762489849665,-1000.0,0.00038137,7]
[393338744,1762489849677,-1000.0,0.00038139,7]
[393338745,1762489849689,-300.0,0.00038142,2]
[393338746,1762489849700,-150.0,0.00038148,7]
[393338747,1762489849710,-300.0,0.00038148,2]
[393338748,1762489849720,-1000.0,0.00038164,7]
[393338749,1762489849731,-1000.0,0.00038168,7]
[393338750,1762489849744,-500.0,0.00038169,30]
[393338751,1762489849757,-1000.0,0.00038173,7]
[393338752,1762489849773,-875.43111292,0.00038177,2]
[393338753,1762489849783,-1000.0,0.00038184,7]
[393338754,1762489849794,-1000.0,0.00038189,7]
[393338755,1762489849804,-1000.0,0.00038193,7]
[393338756,1762489849814,-300.0,0.00038193,2]
[393338757,1762489849824,-1000.0,0.00038195,7]
[393338758,1762489849837,-150.0,0.00038195,7]
[393338759,1762489849849,-300.0,0.00038195,2]
[393338760,1762489849863,-1017.2501,0.00038199,2]
[393338761,1762489849876,-1000.0,0.00038202,7]